fUST/lending_fUST_20250916
["ID","MTS","AMOUNT","RATE_DAILY","PERIOD"]
[385711042,1757983839028,-847.45018724,0.00024,7]
[385711043,1757983839037,-1680.0,0.00024003,2]
[385711044,1757983839046,-160.0,0.00024117,2]
[385711045,1757983839054,-160.0,0.00024145,2]
[385711046,1757983839064,-847.45018724,0.00024145,2]
[385711047,1757983839073,-160.0,0.00024145,2]
[385711048,1757983839082,-160.0,0.00024146,2]
[385711049,1757983839091,-233.24851325,0.00024146,2]
[385711050,1757983839100,-417.15472785,0.00024146,2]
[385711051,1757983839109,-160.0,0.00024146,2]
[385711052,1757983839118,-160.0,0.00024146,2]
[385711053,1757983839127,-480.0,0.0002418,3]
[385711054,1757983839135,-480.0,0.0002418,3]
[385711055,1757983839145,-338.00345037,0.00024206,2]
[385711056,1757983839154,-480.0,0.0002422,3]
[385711057,1757983839163,-922.6,0.00024226,3]
[385711058,1757983839172,-461.3,0.00024226,3]
[385711059,1757983839182,-616.96,0.00024233,3]
[385711060,1757983839191,-187.0,0.00024278,2]
[385711061,1757983839200,-163.29157337,0.000243,2]
[385711062,1757983839209,-1446.75826714,0.00024357,2]
[385711063,1757983839218,-10104.7,0.000244,7]
[385711064,1757983839227,-1272.76,0.000244,7]
[385711065,1757983839237,-187.0,0.00024405,2]
[385711066,1757983839247,-480.0,0.00024454,3]
[385711067,1757983839256,-480.0,0.00024454,3]
[385711068,1757983839265,-187.0,0.00024466,2]
[385711069,1757983839274,-480.0,0.00024494,3]
[385711070,1757983839283,-163.29157337,0.000245,2]
[385711071,1757983839293,-1000.0,0.000245,2]
[385711072,1757983839303,-616.96,0.00024507,3]
[385711073,1757983839312,-1000.0,0.00024516,2]
[385711074,1757983839321,-1000.0,0.00024516,2]
[385711075,1757983839330,-1000.0,0.00024516,2]
[385711076,1757983839339,-602.98973203,0.00024516,2]
[385711077,1757983839348,-2000.0,0.00024516,2]
[385711078,1757983839357,-1000.0,0.00024516,2]
[385711079,1757983839366,-1000.0,0.00024516,2]
[385711080,1757983839375,-500.0,0.00024516,2]
[385711081,1757983839385,-187.0,0.00024553,2]
[385711082,1757983839394,-191.0,0.0002457,2]
[385711083,1757983839403,-187.0,0.00024594,2]
[385711084,1757983839412,-151.0,0.0002461,2]
[385711085,1757983839422,-500.0,0.0002461,2]
[385711086,1757983839431,-500.0,0.0002461,2]
[385711087,1757983839440,-181.08010149,0.0002461,2]
[385711088,1757983839449,-500.0,0.0002461,2]
[385711089,1757983839458,-151.0,0.0002461,2]
[385711090,1757983839468,-1000.0,0.0002461,2]
[385711092,1757983839477,-500.0,0.0002461,2]
[385711093,1757983839486,-151.0,0.0002461,2]
[385711095,1757983839495,-1000.0,0.0002461,2]
[385711096,1757983839504,-500.0,0.0002461,2]
[385711097,1757983839512,-151.0,0.0002461,2]
[385711098,1757983839521,-151.0,0.0002461,2]
[385711099,1757983839531,-1000.0,0.0002461,2]
[385711100,1757983839540,-500.0,0.0002461,2]
[385711101,1757983839549,-151.0,0.0002461,2]
[385711102,1757983839558,-151.0,0.0002461,2]
[385711103,1757983839567,-151.0,0.0002461,2]
[385711104,1757983839576,-18761.83172441,0.0002461,2]
[385711105,1757983839585,-1000.0,0.0002461,2]
[385711106,1757983839594,-500.0,0.0002461,2]
[385711107,1757983839603,-151.0,0.0002461,2]
[385711108,1757983839611,-151.0,0.0002461,2]
[385711109,1757983839622,-151.0,0.0002461,2]
[385711110,1757983839631,-1000.0,0.0002461,2]
[385711111,1757983839639,-500.0,0.0002461,2]
[385711112,1757983839649,-151.0,0.0002461,2]
[385711113,1757983839658,-1000.0,0.0002461,2]
[385711114,1757983839667,-151.0,0.0002461,2]
[385711115,1757983839676,-151.0,0.0002461,2]
[385711116,1757983839685,-500.0,0.0002461,2]
[385711117,1757983839694,-151.0,0.0002461,2]
[385711118,1757983839703,-151.0,0.0002461,2]
[385711119,1757983839713,-500.0,0.0002461,2]
[385711120,1757983839722,-1000.0,0.0002461,2]
[385711121,1757983839731,-151.0,0.0002461,2]
[385711122,1757983839741,-174.65843349,0.0002461,2]
[385711123,1757983839750,-1000.0,0.0002461,2]
[385711124,1757983839759,-151.0,0.0002461,2]
[385711125,1757983839768,-500.0,0.0002461,2]
[385711126,1757983839777,-1000.0,0.0002461,2]
[385711127,1757983839786,-500.0,0.0002461,2]
[385711128,1757983839795,-300.11116599,0.0002461,2]
[385711129,1757983839805,-1000.0,0.0002461,2]
[385711130,1757983839814,-500.0,0.0002461,2]
[385711131,1757983839823,-1000.0,0.0002461,2]
[385711132,1757983839832,-1000.0,0.0002461,2]
[385711133,1757983839841,-500.0,0.0002461,2]
[385711134,1757983839850,-1000.0,0.0002461,2]
[385711135,1757983839859,-500.0,0.0002461,2]
[385711136,1757983839868,-1145.9850186,0.0002461,2]
[385711137,1757983839877,-500.0,0.0002461,2]
[385711138,1757983839887,-500.0,0.0002461,2]
[385711139,1757983839896,-500.0,0.0002461,2]
[385711140,1757983839905,-500.0,0.0002461,2]
[385711141,1757983839915,-500.0,0.0002461,2]
[385711142,1757983839924,-500.0,0.0002461,2]
[385711143,1757983839933,-500.0,0.0002461,2]
[385711146,1757983840034,-260.0,0.00024665,2]
[385711147,1757983840043,-500.0,0.00024673,2]
[385711149,1757983840053,-500.0,0.00024673,2]
[385711151,1757983840062,-500.0,0.00024673,2]
[385711153,1757983840071,-501.09002697,0.00024673,2]
[385711155,1757983840080,-500.0,0.00024673,2]
[385711157,1757983840090,-500.0,0.00024673,2]
[385711159,1757983840099,-500.0,0.00024673,2]
[385711161,1757983840108,-500.0,0.00024673,2]
[385711163,1757983840117,-500.0,0.00024673,2]
[385711165,1757983840126,-500.0,0.00024673,2]
[385711167,1757983840135,-500.0,0.00024673,2]
[385711169,1757983840144,-2932.44,0.000247,7]
[385711171,1757983840153,-480.0,0.00024728,3]
[385711173,1757983840162,-480.0,0.00024728,3]
[385711175,1757983840171,-155.615,0.00024763,8]
[385711177,1757983840180,-480.0,0.00024768,3]
[385711179,1757983840190,-616.96,0.00024781,3]
[385711181,1757983840199,-163.29157337,0.000248,2]
[385711183,1757983840209,-5618.02237326,0.000248,2]
[385711185,1757983840218,-500.0,0.00024873,2]
[385711187,1757983840227,-500.0,0.00024873,2]
[385711189,1757983840236,-500.77902765,0.00024873,2]
[385711191,1757983840246,-500.39823134,0.00024873,2]
[385711193,1757983840255,-1446.75826714,0.00024885,2]
[385711195,1757983840263,-431798.784836,0.000249,2]
[385711197,1757983840273,-187.0,0.00024985,7]
[385711199,1757983840282,-480.0,0.00025002,3]
[385711201,1757983840291,-480.0,0.00025002,3]
[385711203,1757983840299,-480.0,0.00025042,3]
[385711205,1757983840308,-500.0,0.00025048,2]
[385711206,1757983840318,-616.96,0.00025055,3]
[385711208,1757983840327,-1587.01007973,0.00025064,2]
[385711210,1757983840336,-360.0,0.00025213,2]
[385711212,1757983840345,-500.67998248,0.00025221,2]
[385711215,1757983840354,-500.08724029,0.00025221,2]
[385711216,1757983840363,-500.81987614,0.00025221,2]
[385711218,1757983840372,-1000.0,0.00025221,2]
[385711220,1757983840381,-1000.0,0.00025221,2]
[385711222,1757983840390,-1000.0,0.00025221,2]
[385711224,1757983840399,-1000.0,0.00025221,2]
[385711226,1757983840408,-500.19204623,0.00025221,2]
[385711228,1757983840418,-187.0,0.00025226,2]
[385711229,1757983840427,-187.0,0.00025263,2]
[385711230,1757983840436,-480.0,0.00025276,3]
[385711231,1757983840445,-480.0,0.00025276,3]
[385711233,1757983840455,-341.1,0.00025316,3]
[385711235,1757983840464,-616.96,0.00025329,3]
[385711237,1757983840473,-187.0,0.00025389,2]
[385711239,1757983840482,-500.0,0.00025421,2]
[385711241,1757983840491,-518.68054904,0.00025421,2]
[385711242,1757983840500,-191.0,0.00025477,2]
[385711244,1757983840509,-187.0,0.00025489,2]
[385711245,1757983840518,-187.0,0.00025495,2]
[385711246,1757983840527,-187.0,0.00025533,2]
[385711247,1757983840536,-480.0,0.0002555,3]
[385711248,1757983840545,-480.0,0.0002555,3]
[385711249,1757983840554,-616.96,0.00025603,3]
[385711250,1757983840563,-720.0,0.00025655,20]
[385711251,1757983840572,-500.0,0.00025656,2]
[385711252,1757983840582,-500.0,0.00025656,2]
[385711253,1757983840591,-500.0,0.00025656,2]
[385711254,1757983840600,-500.0,0.00025656,2]
[385711255,1757983840609,-502.08173503,0.00025656,2]
[385711256,1757983840619,-460.0,0.00025761,2]
[385711257,1757983840628,-1500.0,0.00025768,2]
[385711258,1757983840637,-1500.0,0.00025768,2]
[385711259,1757983840646,-187.0,0.00025775,2]
[385711260,1757983840657,-187.0,0.00025789,2]
[385711261,1757983840666,-480.0,0.00025824,3]
[385711262,1757983840675,-480.0,0.00025824,3]
[385711263,1757983840685,-510.72930666,0.00025871,2]
[385711264,1757983840694,-616.96,0.00025877,3]
[385711265,1757983840704,-977.0,0.00025881,2]
[385711266,1757983840713,-634.0,0.00025881,2]
[385711267,1757983840722,-2156.0,0.00025881,2]
[385711268,1757983840731,-500.3903766,0.00025929,2]
[385711269,1757983840740,-258.0,0.00025962,2]
[385711270,1757983840749,-587.0,0.00025962,2]
[385711271,1757983840759,-187.0,0.00025999,2]
[385711272,1757983840768,-1245.58,0.00026027,4]
[385711273,1757983840777,-500.0,0.0002604,2]
[385711274,1757983840786,-168.0,0.00026062,2]
[385711275,1757983840795,-395.76,0.00026098,3]
[385711276,1757983840804,-480.0,0.00026098,3]
[385711277,1757983840813,-6750.01517185,0.000261,7]
[385711278,1757983840827,-505.75395028,0.000261,7]
[385711296,1757983843074,-2293.9,0.000261,7]
[385711297,1757983843086,-555.03087787,0.000261,7]
[385711299,1757983843095,-23.16673731,0.000261,7]
[385711300,1757983843127,-1249.59326269,0.000261,7]
[385711301,1757983843137,-1000.36929731,0.000261,7]
[385711302,1757983843181,-1932.07070269,0.000261,7]
[385711303,1757983843191,-187.0,0.00026145,2]
[385711304,1757983843200,-616.96,0.00026151,3]
[385711305,1757983843209,-1000.0,0.00026204,2]
[385711306,1757983843218,-1000.0,0.00026204,2]
[385711307,1757983843227,-2696.0,0.00026246,2]
[385711308,1757983843237,-560.0,0.00026308,2]
[385711309,1757983843246,-853.509972,0.00026316,2]
[385711310,1757983843255,-2000.0,0.00026316,2]
[385711311,1757983843265,-187.0,0.00026325,2]
[385711312,1757983843274,-191.0,0.00026365,2]
[385711313,1757983843283,-435.9,0.00026372,3]
[385711314,1757983843292,-187.0,0.00026377,2]
[385711315,1757983843302,-187.0,0.00026403,2]
[385711316,1757983843311,-616.96,0.00026425,3]
[385711317,1757983843320,-4087.3783959,0.00026436,2]
[385711318,1757983843329,-187.0,0.00026488,2]
[385711319,1757983843338,-191.0,0.00026554,7]
[385711320,1757983843348,-151.0,0.00026576,2]
[385711321,1757983843357,-151.0,0.00026576,2]
[385711322,1757983843366,-163.0,0.00026576,2]
[385711323,1757983843375,-151.0,0.00026576,2]
[385711324,1757983843384,-500.0,0.00026576,2]
[385711325,1757983843393,-163.0,0.00026576,2]
[385711326,1757983843402,-1000.0,0.00026588,2]
[385711327,1757983843411,-616.96,0.00026699,3]
[385711328,1757983843421,-520.14480571,0.00026751,2]
[385711329,1757983843430,-151.0,0.0002685,2]
[385711330,1757983843438,-151.0,0.0002685,2]
[385711331,1757983843448,-151.0,0.0002685,2]
[385711332,1757983843457,-500.0,0.0002685,2]
[385711333,1757983843466,-660.0,0.00026856,2]
[385711334,1757983843476,-2500.0,0.00026864,2]
[385711335,1757983843485,-616.96,0.00026973,3]
[385711336,1757983843494,-157.93389343,0.00027124,2]
[385711337,1757983843503,-151.0,0.00027124,2]
[385711338,1757983843512,-151.0,0.00027124,2]
[385711339,1757983843521,-500.0,0.00027124,2]
[385711340,1757983843531,-616.96,0.00027247,3]
[385711341,1757983843540,-1500.0,0.00027397,2]
[385711342,1757983843549,-270.12626269,0.00027398,2]
[385711343,1757983843557,-151.0,0.00027398,2]
[385711344,1757983843566,-500.0,0.00027398,2]
[385711345,1757983843575,-2932.44,0.000274,7]
[385711346,1757983843585,-510.72930666,0.00027402,2]
[385711347,1757983843594,-760.0,0.00027404,2]
[385711348,1757983843604,-3000.0,0.00027412,5]
[385711349,1757983843614,-616.96,0.00027521,3]
[385711350,1757983843623,-210.29970198,0.00027672,2]
[385711351,1757983843632,-500.0,0.00027672,2]
[385711352,1757983843642,-616.96,0.00027795,3]
[385711353,1757983843651,-10104.7,0.000278,7]
[385711354,1757983843660,-1272.76,0.000278,7]
[385711355,1757983843669,-513.93869721,0.00027946,2]
[385711356,1757983843679,-860.0,0.00027952,2]
[385711357,1757983843688,-3500.0,0.0002796,5]
[385711358,1757983843696,-531.33695587,0.00028,3]
[385711359,1757983843705,-417.15472785,0.00028,3]
[385711360,1757983843715,-500.0,0.00028,10]
[385711361,1757983843724,-616.96,0.00028069,3]
[385711362,1757983843734,-823.0,0.00028212,2]
[385711363,1757983843742,-864.0,0.0002822,20]
[385711364,1757983843752,-616.96,0.00028343,3]
[385711365,1757983843761,-960.0,0.000285,2]
[385711366,1757983843770,-4000.0,0.00028508,5]
[385711367,1757983843779,-616.96,0.00028617,3]
[385711368,1757983843789,-1245.58,0.00028767,6]
[385711369,1757983843798,-2932.44,0.000288,7]
[385711370,1757983843806,-649.0,0.000288,2]
[385711371,1757983843816,-977.0,0.00028881,2]
[385711372,1757983843825,-634.0,0.00028881,2]
[385711373,1757983843834,-2156.0,0.00028881,2]
[385711374,1757983843843,-616.96,0.00028891,3]
[385711375,1757983843852,-918.26166157,0.00028893,2]
[385711376,1757983843861,-531.33695587,0.00029,10]
[385711377,1757983843870,-531.33695587,0.00029,10]
[385711378,1757983843879,-160.0,0.00029,10]
[385711379,1757983843888,-510.72930666,0.0002903,2]
[385711380,1757983843900,-3000.0,0.0002904,7]
[385711381,1757983843909,-1060.0,0.00029048,2]
[385711382,1757983843918,-250.0,0.00029049,2]
[385711383,1757983843927,-650.01669803,0.00029056,5]
[385711384,1757983843936,-617.17013476,0.00029165,3]
[385711385,1757983843945,-500.0,0.0002923,5]
[385711386,1757983843954,-389.4075545,0.0002926,30]
[385711387,1757983843964,-389.4075545,0.0002926,30]
[385711388,1757983843973,-389.4075545,0.0002926,30]
[385711389,1757983843982,-389.4075545,0.0002926,30]
[385711390,1757983843991,-389.4075545,0.0002926,30]
[385711391,1757983844000,-453.79766142,0.00029293,2]
[385711392,1757983844010,-192.39680761,0.00029343,2]
[385711393,1757983844018,-768.8176432,0.00029343,2]
[385711394,1757983844027,-157.3640565,0.00029343,2]
[385711395,1757983844036,-628.82676976,0.00029343,2]
[385711396,1757983844045,-1160.0,0.00029596,2]
[385711397,1757983844054,-3000.0,0.00029862,7]
[385711398,1757983844063,-33175.93219158,0.000299,4]
[385711399,1757983844072,-1272.76,0.000299,7]
[385711400,1757983844082,-510.72930666,0.0002999,2]
[385711401,1757983844091,-1000.0,0.0003,14]
[385711402,1757983844101,-4000.0,0.0003,4]
[385711403,1757983844109,-151.0,0.0003,14]
[385711404,1757983844119,-4087.3783959,0.00030099,2]
[385711405,1757983844128,-729.62256158,0.00030108,7]
[385711406,1757983844138,-1260.0,0.00030144,2]
[385711407,1757983844147,-37528.7142199,0.00030168,2]
[385711408,1757983844156,-161.208564,0.00030168,7]
[385711409,1757983844165,-154.881776,0.00030168,7]
[385711410,1757983844175,-158.773915,0.0003018,10]
[385711411,1757983844184,-1532.18791998,0.0003019,2]
[385711412,1757983844193,-1922.69017536,0.00030199,2]
[385711413,1757983844202,-1168.0,0.00030199,2]
[385711414,1757983844210,-1133529.54276341,0.00030199,20]
[385711426,1757983846002,-438.28170347,0.00030199,20]
[385711427,1757983846013,-19020.90581205,0.00030199,20]
[385711428,1757983900200,151.863387,0.00027476,30]
[385711429,1757984272709,5000.0,0.000206,2]
[385711431,1757984289368,5000.0,0.000206,2]
[385711432,1757984312878,908.78689593,0.000206,2]
[385711434,1757984659599,1240.33415763,0.000206,2]
[385711435,1757984851112,-175.280419,0.00020806,2]
[385711436,1757984851132,-223.122289,0.0002121,2]
[385711437,1757984851151,-263.87704637,0.000213,2]
[385711480,1757985032399,-417.88717517,0.00021087,2]
[385711484,1757985032454,-1359.87872435,0.00021087,2]
[385711485,1757985032465,-1032.61708873,0.00021087,2]
[385711486,1757985032511,-1478.59816473,0.00021087,2]
[385711487,1757985032522,-220.30641932,0.000213,2]
[385711488,1757985032532,-55.90682893,0.000213,2]
[385711489,1757985032543,-204.21107825,0.00021885,2]
[385711490,1757985032552,-993.81914296,0.00021885,2]
[385711491,1757985032565,-1200.0,0.00022298,2]
[385711492,1757985032575,-300.0,0.00022299,2]
[385711494,1757985032586,-300.0,0.00022299,2]
[385711495,1757985032596,-300.0,0.00022299,2]
[385711496,1757985032605,-300.0,0.00022299,2]
[385711497,1757985032615,-480.0,0.000223,3]
[385711498,1757985032625,-480.0,0.000223,3]
[385711499,1757985032635,-480.0,0.000223,3]
[385711500,1757985032645,-480.0,0.000223,3]
[385711501,1757985032654,-28796.62529109,0.000223,2]
[385711502,1757985032851,-5276.6920356,0.000223,2]
[385711503,1757985032862,-480.0,0.000223,3]
[385711504,1757985032871,-480.0,0.00022574,3]
[385711505,1757985032881,-198.67021969,0.00022574,3]
[385711506,1757985032892,-480.0,0.00022574,3]
[385711507,1757985032901,-480.0,0.00022574,3]
[385711508,1757985032911,-480.0,0.00022574,3]
[385711509,1757985032920,-1157.40661372,0.00022673,2]
[385711510,1757985032929,-827.19193548,0.0002269,2]
[385711511,1757985032938,-151.0,0.00022752,2]
[385711512,1757985032947,-480.0,0.00022755,3]
[385711513,1757985032956,-230.65,0.00022756,3]
[385711514,1757985032965,-691.95,0.00022756,3]
[385711515,1757985032974,-192.2,0.00022756,3]
[385711516,1757985032983,-576.65,0.00022756,3]
[385711517,1757985032992,-230.65,0.00022756,3]
[385711518,1757985033001,-480.0,0.00022765,3]
[385711519,1757985033011,-480.0,0.00022765,3]
[385711520,1757985033021,-471.29398834,0.00022765,2]
[385711521,1757985033033,-288.6631792,0.00022765,2]
[385711522,1757985033043,-637.77422244,0.00022765,2]
[385711523,1757985033053,-52922.02295671,0.00022766,2]
[385711524,1757985033065,-502.75515902,0.00022766,2]
[385711525,1757985033077,-754.83309806,0.00022766,2]
[385711563,1757985038190,-5785.64107222,0.00022766,2]
[385711565,1757985038201,-310034.74771399,0.00022766,2]
[385711567,1757985038211,-500.0,0.00022773,2]
[385711569,1757985038220,-500.0,0.00022773,2]
[385711571,1757985038230,-554.91676656,0.00022773,2]
[385711573,1757985038239,-485.04805454,0.00022773,2]
[385711575,1757985038248,-500.0,0.00022773,2]
[385711577,1757985038257,-500.0,0.00022773,2]
[385711579,1757985038266,-521.81528428,0.00022773,2]
[385711581,1757985038275,-313.3833243,0.00022773,2]
[385711583,1757985038284,-500.76948217,0.00022773,2]
[385711585,1757985038293,-504.09211214,0.00022773,2]
[385711587,1757985038302,-500.0,0.00022773,2]
[385711589,1757985038311,-500.0,0.00022773,2]
[385711591,1757985038321,-500.0,0.00022773,2]
[385711593,1757985038331,-500.0,0.00022773,2]
[385711595,1757985038340,-500.0,0.00022773,2]
[385711597,1757985038350,-500.0,0.00022773,2]
[385711599,1757985038359,-170.00163542,0.00022773,2]
[385711601,1757985038368,-500.0,0.00022773,2]
[385711603,1757985038378,-8758.76,0.000228,7]
[385711605,1757985038387,-890.93,0.000228,7]
[385711607,1757985038396,-500.0,0.000228,7]
[385711609,1757985038405,-160.0,0.000228,7]
[385711611,1757985038414,-260.35086254,0.00022807,2]
[385711613,1757985038423,-480.0,0.00022848,3]
[385711615,1757985038433,-480.0,0.00022848,3]
[385711617,1757985038444,-480.0,0.00022848,3]
[385711619,1757985038454,-480.0,0.00022848,3]
[385711621,1757985038463,-480.0,0.00023029,3]
[385711623,1757985038472,-480.0,0.00023039,3]
[385711625,1757985038482,-480.0,0.00023039,3]
[385711627,1757985038491,-300.89952072,0.00023105,2]
[385711629,1757985038501,-480.0,0.00023122,3]
[385711631,1757985038510,-480.0,0.00023122,3]
[385711633,1757985038518,-199.92575047,0.00023122,3]
[385711635,1757985038527,-480.0,0.00023122,3]
[385711637,1757985038539,-1157.40661371,0.00023217,2]
[385711639,1757985038548,-300.0,0.0002322,20]
[385711641,1757985038557,-300.0,0.0002322,20]
[385711643,1757985038566,-300.0,0.0002322,20]
[385711645,1757985038576,-300.0,0.0002322,20]
[385711647,1757985038585,-300.0,0.0002322,20]
[385711649,1757985038594,-1193.69,0.00023287,2]
[385711651,1757985038603,-847.45018724,0.00023303,3]
[385711653,1757985038612,-160.0,0.00023303,3]
[385711655,1757985038621,-480.0,0.00023303,3]
[385711657,1757985038632,-233.24851325,0.00023303,3]
[385711659,1757985038642,-480.0,0.00023313,3]
[385711661,1757985038652,-480.0,0.00023313,3]
[385711662,1757985038662,-1000.85652594,0.00023321,2]
[385711664,1757985038672,-1000.0,0.00023321,2]
[385711667,1757985038683,-1000.0,0.00023321,2]
[385711669,1757985038694,-1000.0,0.00023321,2]
[385711671,1757985038710,-1000.0,0.00023321,2]
[385711673,1757985038719,-1000.0,0.00023321,2]
[385711675,1757985038732,-1000.0,0.00023321,2]
[385711677,1757985038741,-1000.0,0.00023321,2]
[385711679,1757985038750,-160.0,0.00023362,2]
[385711681,1757985038763,-480.0,0.00023396,3]
[385711683,1757985038773,-480.0,0.00023396,3]
[385711685,1757985038783,-480.0,0.00023396,3]
[385711687,1757985038792,-347.0,0.00023504,2]
[385711689,1757985038800,-480.0,0.00023577,3]
[385711691,1757985038811,-480.0,0.00023587,3]
[385711693,1757985038820,-480.0,0.00023587,3]
[385711695,1757985038829,-480.0,0.0002367,3]
[385711697,1757985038838,-480.0,0.0002367,3]
[385711699,1757985038846,-157.56,0.0002367,3]
[385711701,1757985038855,-1157.40661371,0.0002376,2]
[385711703,1757985038864,-480.0,0.00023851,3]
[385711705,1757985038874,-480.0,0.00023861,3]
[385711707,1757985038884,-1500.0,0.00023868,2]
[385711709,1757985038894,-1500.0,0.00023868,2]
[385711711,1757985038904,-1500.0,0.00023868,2]
[385711713,1757985038914,-1500.0,0.00023868,2]
[385711715,1757985038923,-1500.0,0.00023868,2]
[385711717,1757985038932,-250.69111597,0.00023868,2]
[385711719,1757985038941,-260.0,0.00023909,2]
[385711721,1757985038950,-480.0,0.00023944,3]
[385711723,1757985038958,-480.0,0.00023944,3]
[385711725,1757985038967,-847.45018724,0.00024,7]
[385711727,1757985038976,-480.0,0.00024125,3]
[385711729,1757985038985,-461.3,0.00024126,3]
[385711731,1757985038993,-384.4,0.00024126,3]
[385711733,1757985039003,-480.0,0.00024135,3]
[385711735,1757985039011,-480.0,0.00024218,3]
[385711737,1757985039020,-480.0,0.00024218,3]
[385711739,1757985039029,-160.0,0.00024221,2]
[385711741,1757985039038,-160.0,0.00024221,2]
[385711743,1757985039047,-160.0,0.00024221,2]
[385711745,1757985039056,-160.0,0.00024222,2]
[385711747,1757985039069,-233.24851325,0.00024222,2]
[385711749,1757985039079,-847.45018724,0.00024222,2]
[385711751,1757985039099,-378.0,0.00024224,2]
[385711753,1757985039109,-300.0,0.00024224,2]
[385711755,1757985039118,-420.0,0.00024224,2]
[385711757,1757985039126,-163.29157337,0.000243,2]
[385711759,1757985039135,-1157.40661371,0.00024304,2]
[385711761,1757985039144,-1680.0,0.00024336,2]
[385711774,1757985039250,-480.0,0.00024399,3]
[385711776,1757985039260,-480.0,0.00024409,3]
[385711778,1757985039270,-1000.0,0.00024416,2]
[385711780,1757985039279,-1000.0,0.00024416,2]
[385711782,1757985039288,-1000.0,0.00024416,2]
[385711784,1757985039297,-1000.0,0.00024416,2]
[385711786,1757985039306,-602.98973203,0.00024416,2]
[385711788,1757985039315,-360.0,0.00024457,2]
[385711790,1757985039324,-480.0,0.00024492,3]
[385711792,1757985039333,-341.1,0.00024492,3]
[385711794,1757985039341,-163.29157337,0.000246,2]
[385711796,1757985039350,-480.0,0.00024673,3]
[385711798,1757985039360,-480.0,0.00024683,3]
[385711800,1757985039369,-155.615,0.00024764,8]
[385711801,1757985039378,-480.0,0.00024766,3]
[385711804,1757985039388,-151.863387,0.0002478,10]
[385711806,1757985039398,-2052.71,0.000248,7]
[385711808,1757985039407,-163.29157337,0.000248,2]
[385711810,1757985039416,-3217.59463194,0.000248,2]
[385711812,1757985039425,-1157.40661371,0.00024847,2]
[385711814,1757985039434,-500.0,0.00024873,2]
[385711816,1757985039448,-500.0,0.00024873,2]
[385711818,1757985039457,-500.0,0.00024873,2]
[385711820,1757985039466,-500.0,0.00024873,2]
[385711822,1757985039475,-500.0,0.00024873,2]
[385711824,1757985039484,-502.08173503,0.00024873,2]
[385711826,1757985039494,-500.0,0.00024873,2]
[385711828,1757985039503,-500.0,0.00024873,2]
[385711830,1757985039513,-150.0,0.00024873,2]
[385711832,1757985039522,-500.0,0.00024873,2]
[385711834,1757985039532,-500.0,0.00024873,2]
[385711836,1757985039540,-500.58297378,0.00024873,2]
[385711838,1757985039550,-500.0,0.00024873,2]
[385711840,1757985039560,-500.0,0.00024873,2]
[385711842,1757985039570,-500.0,0.00024873,2]
[385711844,1757985039579,-500.0,0.00024873,2]
[385711846,1757985039588,-500.0,0.00024873,2]
[385711848,1757985039598,-500.0,0.00024873,2]
[385711850,1757985039607,-3217.59463194,0.0002489,2]
[385711851,1757985039616,-72866.0449404,0.000249,2]
[385711853,1757985039625,-480.0,0.00024947,3]
[385711855,1757985039634,-480.0,0.00024957,3]
[385711857,1757985039643,-151.863387,0.0002496,10]